[Event "Titled Tuesday Blitz July 11 Late 2023"]
[White "Gazola, Vanessa Ramos"]
[Black "Schuster, Karsten"]
[WhiteFideId "2112590"]
[BlackFideId "4611071"]
[WhiteElo "2079"]
[BlackElo "2334"]
[Result "0-1"]
[Round "4"]
[TimeControl "180+2"]
[Date "2023.07.11"]
[WhiteClock "0:01:50"]
[BlackClock "0:02:13"]
[Board "165"]

1. d4 {[%clk 0:02:57]}  d5 {[%clk 0:02:57]} 2. c4 {[%clk 0:02:58]}  e6 {[%clk 0:02:57]} 3. Nc3 {[%clk 0:02:56]}  Nf6 {[%clk 0:02:57]} 4. cxd5 {[%clk 0:02:57]}  exd5 {[%clk 0:02:57]} 5. Bg5 {[%clk 0:02:57]}  Be7 {[%clk 0:02:57]} 6. e3 {[%clk 0:02:57]}  c6 {[%clk 0:02:57]} 7. Bd3 {[%clk 0:02:56]}  O-O {[%clk 0:02:57]} 8. Qc2 {[%clk 0:02:55]}  Nbd7 {[%clk 0:02:56]} 9. Nge2 {[%clk 0:02:54]}  Re8 {[%clk 0:02:56]} 10. O-O {[%clk 0:02:54]}  Nf8 {[%clk 0:02:56]} 11. Rab1 {[%clk 0:02:45]}  Ne4 {[%clk 0:02:44]} 12. Bxe7 {[%clk 0:02:36]}  Qxe7 {[%clk 0:02:44]} 13. Bxe4 {[%clk 0:02:30]}  dxe4 {[%clk 0:02:44]} 14. d5 {[%clk 0:02:31]}  f5 {[%clk 0:02:32]} 15. dxc6 {[%clk 0:02:29]}  bxc6 {[%clk 0:02:32]} 16. Na4 {[%clk 0:02:22]}  Ba6 {[%clk 0:02:28]} 17. Nc5 {[%clk 0:02:14]}  Bxe2 {[%clk 0:02:24]} 18. Qxe2 {[%clk 0:02:13]}  Qxc5 {[%clk 0:02:24]} 19. Rbc1 {[%clk 0:02:13]}  Qb6 {[%clk 0:02:22]} 20. b3 {[%clk 0:02:10]}  Kh8 {[%clk 0:02:21]} 21. Qh5 {[%clk 0:02:03]}  g6 {[%clk 0:02:20]} 22. Qg5 {[%clk 0:02:01]}  Qd8 {[%clk 0:02:16]} 23. Qf4 {[%clk 0:01:55]}  Qf6 {[%clk 0:02:15]} 24. h4 {[%clk 0:01:53]}  Rac8 {[%clk 0:02:13]} 25. Rc5 {[%clk 0:01:50]}  Ne6 {[%clk 0:02:13]} 0-1


[Site "https://www.chess.com"]

[Event "Titled Tuesday Blitz July 11 Late 2023"]
[White "Domingo Nunez, Ruben"]
[Black "Thiel, Thomas"]
[WhiteFideId "22245570"]
[BlackFideId "4615964"]
[WhiteElo "2543"]
[BlackElo "2213"]
[Result "1-0"]
[Round "4"]
[TimeControl "180+2"]
[Date "2023.07.11"]
[WhiteClock "0:00:06"]
[BlackClock "0:00:10"]
[Board "167"]

1. e4 {[%clk 0:03:00]}  d5 {[%clk 0:02:56]} 2. exd5 {[%clk 0:03:00]}  Nf6 {[%clk 0:02:55]} 3. Bb5+ {[%clk 0:03:01]}  Nbd7 {[%clk 0:02:53]} 4. Nf3 {[%clk 0:03:00]}  Nxd5 {[%clk 0:02:50]} 5. O-O {[%clk 0:03:00]}  c6 {[%clk 0:02:50]} 6. Be2 {[%clk 0:03:00]}  g6 {[%clk 0:02:50]} 7. d4 {[%clk 0:02:58]}  Bg7 {[%clk 0:02:49]} 8. c4 {[%clk 0:02:59]}  Nc7 {[%clk 0:02:47]} 9. Nc3 {[%clk 0:02:59]}  O-O {[%clk 0:02:45]} 10. Bg5 {[%clk 0:02:53]}  Nf6 {[%clk 0:02:40]} 11. h3 {[%clk 0:02:47]}  h6 {[%clk 0:02:37]} 12. Be3 {[%clk 0:02:47]}  Bf5 {[%clk 0:02:28]} 13. Qb3 {[%clk 0:02:46]}  Qd6 {[%clk 0:02:15]} 14. Ne5 {[%clk 0:02:41]}  b5 {[%clk 0:02:07]} 15. c5 {[%clk 0:02:27]}  Qe6 {[%clk 0:02:01]} 16. Qxe6 {[%clk 0:02:26]}  Bxe6 {[%clk 0:02:01]} 17. Nxc6 {[%clk 0:02:27]}  Rfe8 {[%clk 0:01:57]} 18. Bf3 {[%clk 0:01:39]}  Nfd5 {[%clk 0:01:53]} 19. Rac1 {[%clk 0:01:30]}  a6 {[%clk 0:01:44]} 20. a3 {[%clk 0:00:49]}  Rac8 {[%clk 0:01:39]} 21. Nb4 {[%clk 0:00:48]}  Nxb4 {[%clk 0:01:32]} 22. axb4 {[%clk 0:00:49]}  Red8 {[%clk 0:01:31]} 23. Rfd1 {[%clk 0:00:38]}  Bb3 {[%clk 0:01:28]} 24. Rd2 {[%clk 0:00:35]}  Nd5 {[%clk 0:01:27]} 25. Nxd5 {[%clk 0:00:34]}  Bxd5 {[%clk 0:01:26]} 26. Bg4 {[%clk 0:00:31]}  e6 {[%clk 0:01:25]} 27. Ra1 {[%clk 0:00:30]}  Rc6 {[%clk 0:01:16]} 28. Be2 {[%clk 0:00:28]}  g5 {[%clk 0:01:07]} 29. Ra3 {[%clk 0:00:23]}  f5 {[%clk 0:01:06]} 30. f4 {[%clk 0:00:22]}  gxf4 {[%clk 0:00:56]} 31. Bxf4 {[%clk 0:00:23]}  Be4 {[%clk 0:00:57]} 32. Be3 {[%clk 0:00:23]}  Rd7 {[%clk 0:00:53]} 33. Rd1 {[%clk 0:00:19]}  Bc2 {[%clk 0:00:39]} 34. Rda1 {[%clk 0:00:19]}  Bxd4 {[%clk 0:00:36]} 35. Bxd4 {[%clk 0:00:16]}  Rxd4 {[%clk 0:00:37]} 36. Rxa6 {[%clk 0:00:17]}  Rxa6 {[%clk 0:00:36]} 37. Rxa6 {[%clk 0:00:18]}  Be4 {[%clk 0:00:32]} 38. c6 {[%clk 0:00:15]}  Rd2 {[%clk 0:00:30]} 39. Ra8+ {[%clk 0:00:06]}  Kf7 {[%clk 0:00:10]} 40. c7 {[%clk 0:00:06]} 1-0


[Site "https://www.chess.com"]

[Event "Titled Tuesday Blitz July 11 Late 2023"]
[White "WindWhistler11"]
[Black "Osmonbekov, Talaibek"]
[BlackFideId "2017253"]
[WhiteElo "2480"]
[BlackElo "2204"]
[Result "1-0"]
[Round "4"]
[TimeControl "180+2"]
[Date "2023.07.11"]
[WhiteClock "0:00:06"]
[BlackClock "0:00:00"]
[Board "168"]

1. e4 {[%clk 0:03:00]}  c5 {[%clk 0:02:20]} 2. Nf3 {[%clk 0:02:59]}  d6 {[%clk 0:02:19]} 3. Bc4 {[%clk 0:02:58]}  e6 {[%clk 0:02:19]} 4. c3 {[%clk 0:02:44]}  Nf6 {[%clk 0:02:17]} 5. O-O {[%clk 0:02:39]}  Nxe4 {[%clk 0:02:01]} 6. Bxe6 {[%clk 0:02:26]}  Bxe6 {[%clk 0:01:53]} 7. Qa4+ {[%clk 0:02:26]}  Nc6 {[%clk 0:01:52]} 8. Qxe4 {[%clk 0:02:26]}  Be7 {[%clk 0:01:50]} 9. d4 {[%clk 0:02:22]}  d5 {[%clk 0:01:49]} 10. Qe3 {[%clk 0:02:18]}  cxd4 {[%clk 0:01:40]} 11. Nxd4 {[%clk 0:02:17]}  Nxd4 {[%clk 0:01:40]} 12. Qxd4 {[%clk 0:02:16]}  O-O {[%clk 0:01:41]} 13. Bf4 {[%clk 0:02:13]}  a6 {[%clk 0:01:29]} 14. Be5 {[%clk 0:02:07]}  f6 {[%clk 0:01:23]} 15. Bg3 {[%clk 0:02:04]}  Rc8 {[%clk 0:01:21]} 16. Re1 {[%clk 0:02:01]}  Bf7 {[%clk 0:01:21]} 17. Nd2 {[%clk 0:01:56]}  Bc5 {[%clk 0:01:17]} 18. Qg4 {[%clk 0:01:49]}  d4 {[%clk 0:01:05]} 19. Ne4 {[%clk 0:01:45]}  dxc3 {[%clk 0:00:59]} 20. Rad1 {[%clk 0:01:41]}  Qb6 {[%clk 0:00:51]} 21. bxc3 {[%clk 0:01:29]}  Rcd8 {[%clk 0:00:32]} 22. Rb1 {[%clk 0:01:20]}  Qc6 {[%clk 0:00:27]} 23. Nxc5 {[%clk 0:01:13]}  Qxc5 {[%clk 0:00:27]} 24. Rxb7 {[%clk 0:01:12]}  Qxc3 {[%clk 0:00:25]} 25. Reb1 {[%clk 0:00:51]}  Qc4 {[%clk 0:00:15]} 26. Bf4 {[%clk 0:00:28]}  g5 {[%clk 0:00:14]} 27. g3 {[%clk 0:00:25]}  Bg6 {[%clk 0:00:13]} 28. Rc7 {[%clk 0:00:15]}  Qxa2 {[%clk 0:00:11]} 29. Rbb7 {[%clk 0:00:15]}  Qa1+ {[%clk 0:00:08]} 30. Bc1 {[%clk 0:00:12]}  Rf7 {[%clk 0:00:04]} 31. Rxf7 {[%clk 0:00:10]}  Qxc1+ {[%clk 0:00:03]} 32. Kg2 {[%clk 0:00:10]}  Bxf7 {[%clk 0:00:03]} 33. Kh3 {[%clk 0:00:07]}  Qc8 {[%clk 0:00:01]} 34. Qxc8 {[%clk 0:00:05]}  Rxc8 {[%clk 0:00:02]} 35. Ra7 {[%clk 0:00:06]}  Rc6 {[%clk 0:00:03]} 36. Kg2 {[%clk 0:00:06]}  Kg7 {[%clk 0:00:00]} 37. h4 {[%clk 0:00:06]} 1-0


[Site "https://www.chess.com"]

[Event "Titled Tuesday Blitz July 11 Late 2023"]
[White "Oliveira, Tiago Batista"]
[Black "Khairat , Ahmed"]
[WhiteFideId "2108291"]
[BlackFideId "10624171"]
[WhiteElo "2151"]
[BlackElo "2397"]
[Result "1-0"]
[Round "4"]
[TimeControl "180+2"]
[Date "2023.07.11"]
[WhiteClock "0:00:05"]
[BlackClock "0:00:34"]
[Board "171"]

1. d4 {[%clk 0:03:00]}  e5 {[%clk 0:02:54]} 2. dxe5 {[%clk 0:02:59]}  f6 {[%clk 0:02:53]} 3. Nf3 {[%clk 0:02:57]}  Nc6 {[%clk 0:02:49]} 4. e4 {[%clk 0:02:53]}  Bb4+ {[%clk 0:02:48]} 5. Bd2 {[%clk 0:02:50]}  Qe7 {[%clk 0:02:46]} 6. Bc4 {[%clk 0:02:46]}  Nxe5 {[%clk 0:02:42]} 7. Nxe5 {[%clk 0:02:43]}  fxe5 {[%clk 0:02:43]} 8. O-O {[%clk 0:02:41]}  Nf6 {[%clk 0:02:40]} 9. Nc3 {[%clk 0:02:31]}  d6 {[%clk 0:02:33]} 10. Bg5 {[%clk 0:01:58]}  c6 {[%clk 0:02:29]} 11. Qf3 {[%clk 0:01:47]}  Be6 {[%clk 0:02:24]} 12. Bxf6 {[%clk 0:01:10]}  gxf6 {[%clk 0:02:23]} 13. Qh5+ {[%clk 0:01:09]}  Kd7 {[%clk 0:01:54]} 14. Bb3 {[%clk 0:00:54]}  Rag8 {[%clk 0:01:47]} 15. Rad1 {[%clk 0:00:49]}  Rg5 {[%clk 0:01:44]} 16. Qh4 {[%clk 0:00:43]}  Rhg8 {[%clk 0:01:42]} 17. g3 {[%clk 0:00:36]}  h5 {[%clk 0:01:37]} 18. f3 {[%clk 0:00:24]}  Kc7 {[%clk 0:01:32]} 19. Ne2 {[%clk 0:00:14]}  f5 {[%clk 0:01:21]} 20. Bxe6 {[%clk 0:00:14]}  Qxe6 {[%clk 0:01:22]} 21. exf5 {[%clk 0:00:14]}  Qxf5 {[%clk 0:01:22]} 22. Qxb4 {[%clk 0:00:14]}  R8g6 {[%clk 0:01:16]} 23. Qa5+ {[%clk 0:00:13]}  Kd7 {[%clk 0:01:13]} 24. Qxa7 {[%clk 0:00:13]}  h4 {[%clk 0:01:11]} 25. Qxb7+ {[%clk 0:00:13]}  Kd8 {[%clk 0:01:08]} 26. Qxc6 {[%clk 0:00:08]}  hxg3 {[%clk 0:01:07]} 27. Rxd6+ {[%clk 0:00:07]}  Rxd6 {[%clk 0:01:04]} 28. Qxd6+ {[%clk 0:00:07]}  Ke8 {[%clk 0:01:05]} 29. hxg3 {[%clk 0:00:07]}  Qxc2 {[%clk 0:01:02]} 30. Rf2 {[%clk 0:00:06]}  Qxb2 {[%clk 0:00:57]} 31. Qe6+ {[%clk 0:00:05]}  Kf8 {[%clk 0:00:53]} 32. Qf6+ {[%clk 0:00:05]}  Ke8 {[%clk 0:00:53]} 33. Qxg5 {[%clk 0:00:05]}  Qb1+ {[%clk 0:00:53]} 34. Kg2 {[%clk 0:00:05]}  Qxa2 {[%clk 0:00:53]} 35. Qxe5+ {[%clk 0:00:05]}  Kf7 {[%clk 0:00:52]} 36. Nf4 {[%clk 0:00:05]}  Qb1 {[%clk 0:00:51]} 37. Qc7+ {[%clk 0:00:05]}  Kf6 {[%clk 0:00:51]} 38. Rc2 {[%clk 0:00:05]}  Qa1 {[%clk 0:00:47]} 39. Qd6+ {[%clk 0:00:05]}  Kf5 {[%clk 0:00:34]} 40. Rc5+ {[%clk 0:00:05]} 1-0


[Site "https://www.chess.com"]

[Event "Titled Tuesday Blitz July 11 Late 2023"]
[White "Winkels, Marcel"]
[Black "Prieto Aranguren, Alain"]
[WhiteFideId "1003887"]
[BlackFideId "2268906"]
[WhiteElo "2115"]
[BlackElo "2390"]
[Result "0-1"]
[Round "4"]
[TimeControl "180+2"]
[Date "2023.07.11"]
[WhiteClock "0:00:00"]
[BlackClock "0:00:41"]
[Board "174"]

1. e4 {[%clk 0:03:00]}  c5 {[%clk 0:02:59]} 2. Nf3 {[%clk 0:03:00]}  Nc6 {[%clk 0:02:59]} 3. d4 {[%clk 0:03:00]}  cxd4 {[%clk 0:02:59]} 4. Nxd4 {[%clk 0:03:00]}  Nf6 {[%clk 0:02:59]} 5. Nc3 {[%clk 0:03:00]}  g6 {[%clk 0:02:57]} 6. Nxc6 {[%clk 0:02:58]}  bxc6 {[%clk 0:02:56]} 7. e5 {[%clk 0:02:59]}  Nd5 {[%clk 0:02:56]} 8. f4 {[%clk 0:02:59]}  Nxc3 {[%clk 0:02:53]} 9. bxc3 {[%clk 0:02:58]}  Bg7 {[%clk 0:02:53]} 10. Bd2 {[%clk 0:02:47]}  O-O {[%clk 0:02:52]} 11. Bc4 {[%clk 0:02:41]}  d6 {[%clk 0:02:48]} 12. exd6 {[%clk 0:02:36]}  exd6 {[%clk 0:02:49]} 13. O-O {[%clk 0:02:35]}  d5 {[%clk 0:02:47]} 14. Bd3 {[%clk 0:02:34]}  c5 {[%clk 0:02:35]} 15. Rb1 {[%clk 0:02:27]}  Qd6 {[%clk 0:02:20]} 16. Qf3 {[%clk 0:02:17]}  Bd7 {[%clk 0:02:16]} 17. f5 {[%clk 0:02:15]}  Bc6 {[%clk 0:02:15]} 18. f6 {[%clk 0:02:04]}  d4 {[%clk 0:02:05]} 19. Qf4 {[%clk 0:01:27]}  Qxf4 {[%clk 0:02:00]} 20. Bxf4 {[%clk 0:01:14]}  Bxf6 {[%clk 0:01:59]} 21. Bd6 {[%clk 0:01:13]}  Kg7 {[%clk 0:01:25]} 22. Bxf8+ {[%clk 0:01:12]}  Rxf8 {[%clk 0:01:26]} 23. c4 {[%clk 0:01:07]}  Bg5 {[%clk 0:01:20]} 24. Rbe1 {[%clk 0:00:52]}  h5 {[%clk 0:01:17]} 25. Be4 {[%clk 0:00:47]}  Ba4 {[%clk 0:01:09]} 26. Rb1 {[%clk 0:00:26]}  Re8 {[%clk 0:00:56]} 27. Bd5 {[%clk 0:00:25]}  Re7 {[%clk 0:00:49]} 28. Rb2 {[%clk 0:00:15]}  Bd2 {[%clk 0:00:45]} 29. Rb8 {[%clk 0:00:11]}  Be3+ {[%clk 0:00:43]} 30. Kh1 {[%clk 0:00:09]}  Bxc2 {[%clk 0:00:43]} 31. Rc8 {[%clk 0:00:08]}  d3 {[%clk 0:00:43]} 32. Rd8 {[%clk 0:00:04]}  d2 {[%clk 0:00:42]} 33. Bf3 {[%clk 0:00:00]}  Bd4 {[%clk 0:00:41]} 0-1


[Site "https://www.chess.com"]

[Event "Titled Tuesday Blitz July 11 Late 2023"]
[White "Kanyamarala, Trisha"]
[Black "campochess"]
[WhiteFideId "45004722"]
[WhiteElo "2388"]
[BlackElo "2111"]
[Result "1-0"]
[Round "4"]
[TimeControl "180+2"]
[Date "2023.07.11"]
[WhiteClock "0:00:25"]
[BlackClock "0:00:00"]
[Board "175"]

1. d4 {[%clk 0:02:04]}  Nf6 {[%clk 0:02:56]} 2. c4 {[%clk 0:02:04]}  c5 {[%clk 0:02:56]} 3. d5 {[%clk 0:02:04]}  b5 {[%clk 0:02:56]} 4. cxb5 {[%clk 0:02:03]}  a6 {[%clk 0:02:56]} 5. b6 {[%clk 0:02:02]}  d6 {[%clk 0:02:54]} 6. Nc3 {[%clk 0:02:02]}  Nbd7 {[%clk 0:02:54]} 7. Nf3 {[%clk 0:01:59]}  Nxb6 {[%clk 0:02:54]} 8. g3 {[%clk 0:01:59]}  g6 {[%clk 0:02:54]} 9. Bg2 {[%clk 0:01:59]}  Bg7 {[%clk 0:02:54]} 10. O-O {[%clk 0:02:00]}  O-O {[%clk 0:02:51]} 11. a4 {[%clk 0:02:00]}  Rb8 {[%clk 0:02:49]} 12. Nd2 {[%clk 0:01:57]}  Ng4 {[%clk 0:02:46]} 13. a5 {[%clk 0:01:54]}  Na8 {[%clk 0:02:42]} 14. Nc4 {[%clk 0:01:50]}  Bd7 {[%clk 0:02:32]} 15. h3 {[%clk 0:01:45]}  Nh6 {[%clk 0:02:31]} 16. Bf4 {[%clk 0:01:40]}  Kh8 {[%clk 0:02:28]} 17. Qd2 {[%clk 0:01:40]}  Ng8 {[%clk 0:02:28]} 18. e4 {[%clk 0:01:40]}  Bb5 {[%clk 0:02:27]} 19. b3 {[%clk 0:01:38]}  Bxc4 {[%clk 0:02:23]} 20. bxc4 {[%clk 0:01:39]}  Rb4 {[%clk 0:02:16]} 21. Ra4 {[%clk 0:01:31]}  Qc7 {[%clk 0:02:00]} 22. Rxb4 {[%clk 0:01:28]}  cxb4 {[%clk 0:01:59]} 23. Ne2 {[%clk 0:01:28]}  Qxa5 {[%clk 0:01:59]} 24. Nd4 {[%clk 0:01:26]}  Qc5 {[%clk 0:01:18]} 25. Nc6 {[%clk 0:01:23]}  a5 {[%clk 0:01:18]} 26. Rc1 {[%clk 0:01:16]}  Nb6 {[%clk 0:01:17]} 27. Be3 {[%clk 0:01:13]}  Nxc4 {[%clk 0:01:13]} 28. Qd3 {[%clk 0:01:11]}  Nb2 {[%clk 0:00:59]} 29. Qe2 {[%clk 0:01:06]}  Qxc1+ {[%clk 0:00:40]} 30. Bxc1 {[%clk 0:01:05]}  Na4 {[%clk 0:00:37]} 31. Nxa5 {[%clk 0:01:02]}  Nc3 {[%clk 0:00:35]} 32. Qc4 {[%clk 0:01:02]}  f5 {[%clk 0:00:32]} 33. exf5 {[%clk 0:00:58]}  Rxf5 {[%clk 0:00:31]} 34. Be3 {[%clk 0:00:54]}  b3 {[%clk 0:00:18]} 35. Qxb3 {[%clk 0:00:53]}  Ne2+ {[%clk 0:00:17]} 36. Kh2 {[%clk 0:00:53]}  Nd4 {[%clk 0:00:17]} 37. Qd3 {[%clk 0:00:49]}  e5 {[%clk 0:00:14]} 38. dxe6 {[%clk 0:00:47]}  Nxe6 {[%clk 0:00:14]} 39. Nb7 {[%clk 0:00:43]}  Nc5 {[%clk 0:00:13]} 40. Qxd6 {[%clk 0:00:32]}  Nb3 {[%clk 0:00:09]} 41. Qd3 {[%clk 0:00:30]}  Na1 {[%clk 0:00:06]} 42. Nd6 {[%clk 0:00:29]}  Rf8 {[%clk 0:00:03]} 43. Bd5 {[%clk 0:00:27]}  Nf6 {[%clk 0:00:03]} 44. Nf7+ {[%clk 0:00:26]}  Kg8 {[%clk 0:00:01]} 45. Ng5+ {[%clk 0:00:25]}  Kh8 {[%clk 0:00:00]} 46. Ne6 {[%clk 0:00:25]} 1-0


[Site "https://www.chess.com"]

[Event "Titled Tuesday Blitz July 11 Late 2023"]
[White "Funderburg, John T"]
[Black "Hoffmann, Asa"]
[WhiteFideId "2004992"]
[BlackFideId "2001470"]
[WhiteElo "1966"]
[BlackElo "2291"]
[Result "1-0"]
[Round "4"]
[TimeControl "180+2"]
[Date "2023.07.11"]
[WhiteClock "0:00:09"]
[BlackClock "0:00:00"]
[Board "182"]

1. d4 {[%clk 0:02:55]}  Nf6 {[%clk 0:02:58]} 2. Nf3 {[%clk 0:02:55]}  d6 {[%clk 0:02:57]} 3. e3 {[%clk 0:02:55]}  c6 {[%clk 0:02:55]} 4. c4 {[%clk 0:02:55]}  Bg4 {[%clk 0:02:54]} 5. Be2 {[%clk 0:02:52]}  Nbd7 {[%clk 0:02:53]} 6. Nc3 {[%clk 0:02:50]}  e5 {[%clk 0:02:53]} 7. Qc2 {[%clk 0:02:38]}  Be7 {[%clk 0:02:52]} 8. O-O {[%clk 0:02:38]}  O-O {[%clk 0:02:51]} 9. h3 {[%clk 0:02:39]}  Bh5 {[%clk 0:02:50]} 10. Rd1 {[%clk 0:02:39]}  a6 {[%clk 0:02:48]} 11. dxe5 {[%clk 0:02:32]}  dxe5 {[%clk 0:02:43]} 12. Nxe5 {[%clk 0:02:28]}  Bg6 {[%clk 0:02:26]} 13. Nxg6 {[%clk 0:02:23]}  hxg6 {[%clk 0:02:25]} 14. b3 {[%clk 0:02:16]}  Qc7 {[%clk 0:02:21]} 15. Bb2 {[%clk 0:02:15]}  Bd6 {[%clk 0:02:20]} 16. Bf3 {[%clk 0:02:09]}  Ne5 {[%clk 0:02:17]} 17. Be2 {[%clk 0:01:57]}  Rad8 {[%clk 0:02:13]} 18. Ne4 {[%clk 0:01:55]}  Nxe4 {[%clk 0:02:07]} 19. Qxe4 {[%clk 0:01:56]}  Rfe8 {[%clk 0:02:07]} 20. Qh4 {[%clk 0:01:51]}  Be7 {[%clk 0:02:02]} 21. Qg3 {[%clk 0:01:35]}  Bf6 {[%clk 0:01:59]} 22. Kf1 {[%clk 0:01:14]}  Qa5 {[%clk 0:01:53]} 23. f4 {[%clk 0:01:02]}  Nd7 {[%clk 0:01:48]} 24. Bxf6 {[%clk 0:01:01]}  Nxf6 {[%clk 0:01:48]} 25. Bd3 {[%clk 0:00:35]}  Qc3 {[%clk 0:01:42]} 26. Rac1 {[%clk 0:00:19]}  Qb2 {[%clk 0:01:24]} 27. Rc2 {[%clk 0:00:17]}  Qa3 {[%clk 0:01:17]} 28. Rcd2 {[%clk 0:00:17]}  Qc5 {[%clk 0:01:14]} 29. e4 {[%clk 0:00:16]}  Qh5 {[%clk 0:01:01]} 30. e5 {[%clk 0:00:15]}  Nd7 {[%clk 0:00:57]} 31. Be2 {[%clk 0:00:16]}  Qf5 {[%clk 0:00:27]} 32. Bg4 {[%clk 0:00:16]}  Qe4 {[%clk 0:00:22]} 33. Rxd7 {[%clk 0:00:10]}  Rxd7 {[%clk 0:00:20]} 34. Rxd7 {[%clk 0:00:11]}  Qb1+ {[%clk 0:00:13]} 35. Kf2 {[%clk 0:00:11]}  Qxa2+ {[%clk 0:00:12]} 36. Kg1 {[%clk 0:00:11]}  b5 {[%clk 0:00:00]} 37. Qd3 {[%clk 0:00:09]} 1-0


[Site "https://www.chess.com"]

[Event "Titled Tuesday Blitz July 11 Late 2023"]
[White "Filgueiras, Nathan Felipe"]
[Black "Quirke, Jeffrey"]
[WhiteFideId "2188562"]
[BlackFideId "2013029"]
[WhiteElo "1895"]
[BlackElo "2244"]
[Result "0-1"]
[Round "4"]
[TimeControl "180+2"]
[Date "2023.07.11"]
[WhiteClock "0:02:09"]
[BlackClock "0:01:22"]
[Board "183"]

1. e4 {[%clk 0:02:58]}  c5 {[%clk 0:02:59]} 2. Nf3 {[%clk 0:02:58]}  g6 {[%clk 0:02:59]} 3. c4 {[%clk 0:02:58]}  Bg7 {[%clk 0:02:58]} 4. d4 {[%clk 0:02:59]}  Qb6 {[%clk 0:02:52]} 5. Nc3 {[%clk 0:02:48]}  cxd4 {[%clk 0:02:50]} 6. Nd5 {[%clk 0:02:48]}  Qa5+ {[%clk 0:02:42]} 7. Bd2 {[%clk 0:02:47]}  Qd8 {[%clk 0:02:43]} 8. Bb4 {[%clk 0:02:34]}  Nc6 {[%clk 0:02:40]} 9. Ba3 {[%clk 0:02:31]}  d6 {[%clk 0:02:11]} 10. c5 {[%clk 0:02:27]}  dxc5 {[%clk 0:02:00]} 11. Bxc5 {[%clk 0:02:28]}  e6 {[%clk 0:01:58]} 12. Nf4 {[%clk 0:02:14]}  Qa5+ {[%clk 0:01:50]} 13. b4 {[%clk 0:02:14]}  Nxb4 {[%clk 0:01:50]} 14. Bxb4 {[%clk 0:02:13]}  Qxb4+ {[%clk 0:01:49]} 15. Qd2 {[%clk 0:02:14]}  Qxd2+ {[%clk 0:01:46]} 16. Kxd2 {[%clk 0:02:15]}  Ne7 {[%clk 0:01:40]} 17. Kd3 {[%clk 0:02:15]}  Nc6 {[%clk 0:01:39]} 18. Rc1 {[%clk 0:02:16]}  Bd7 {[%clk 0:01:39]} 19. Be2 {[%clk 0:02:15]}  O-O {[%clk 0:01:35]} 20. Kd2 {[%clk 0:02:14]}  Rfc8 {[%clk 0:01:32]} 21. Bb5 {[%clk 0:02:14]}  a6 {[%clk 0:01:29]} 22. Bxc6 {[%clk 0:02:08]}  Bxc6 {[%clk 0:01:29]} 23. Kd3 {[%clk 0:02:09]}  e5 {[%clk 0:01:23]} 24. Ne2 {[%clk 0:02:09]}  Bb5+ {[%clk 0:01:22]} 0-1


[Site "https://www.chess.com"]

[Event "Titled Tuesday Blitz July 11 Late 2023"]
[White "Gyulamiryan-koryun"]
[Black "Alexikov, Alexander"]
[BlackFideId "14103958"]
[WhiteElo "1856"]
[BlackElo "2242"]
[Result "1-0"]
[Round "4"]
[TimeControl "180+2"]
[Date "2023.07.11"]
[WhiteClock "0:00:44"]
[BlackClock "0:00:00"]
[Board "184"]

1. e4 {[%clk 0:02:57]}  c5 {[%clk 0:02:59]} 2. Be2 {[%clk 0:02:56]}  d6 {[%clk 0:02:59]} 3. f4 {[%clk 0:02:56]}  g6 {[%clk 0:02:58]} 4. Nf3 {[%clk 0:02:56]}  Bg7 {[%clk 0:02:58]} 5. c3 {[%clk 0:02:56]}  Nf6 {[%clk 0:02:56]} 6. d3 {[%clk 0:02:56]}  O-O {[%clk 0:02:54]} 7. O-O {[%clk 0:02:56]}  c4 {[%clk 0:02:35]} 8. Nbd2 {[%clk 0:02:39]}  cxd3 {[%clk 0:02:23]} 9. Bxd3 {[%clk 0:02:39]}  Na6 {[%clk 0:02:18]} 10. Nb3 {[%clk 0:02:36]}  Qc7 {[%clk 0:01:56]} 11. h3 {[%clk 0:02:34]}  Nc5 {[%clk 0:01:52]} 12. Nxc5 {[%clk 0:02:24]}  Qxc5+ {[%clk 0:01:50]} 13. Kh2 {[%clk 0:02:21]}  b5 {[%clk 0:01:48]} 14. Qe2 {[%clk 0:02:19]}  b4 {[%clk 0:01:33]} 15. Be3 {[%clk 0:02:14]}  Qa5 {[%clk 0:01:32]} 16. c4 {[%clk 0:01:58]}  Bb7 {[%clk 0:01:25]} 17. Bd2 {[%clk 0:01:57]}  Qc5 {[%clk 0:01:19]} 18. Rac1 {[%clk 0:01:53]}  a5 {[%clk 0:01:14]} 19. b3 {[%clk 0:01:52]}  Rfc8 {[%clk 0:01:09]} 20. Be3 {[%clk 0:01:51]}  Qc7 {[%clk 0:01:07]} 21. Bf2 {[%clk 0:01:43]}  Nd7 {[%clk 0:01:05]} 22. Bd4 {[%clk 0:01:30]}  e5 {[%clk 0:00:59]} 23. Ba1 {[%clk 0:01:27]}  exf4 {[%clk 0:00:53]} 24. Bxg7 {[%clk 0:01:25]}  Kxg7 {[%clk 0:00:52]} 25. Nd4 {[%clk 0:01:14]}  Ne5 {[%clk 0:00:37]} 26. Bb1 {[%clk 0:01:07]}  Qc5 {[%clk 0:00:26]} 27. Rcd1 {[%clk 0:01:01]}  Re8 {[%clk 0:00:17]} 28. Rxf4 {[%clk 0:01:01]}  Re7 {[%clk 0:00:04]} 29. Qf2 {[%clk 0:01:00]}  Rae8 {[%clk 0:00:00]} 30. Kg1 {[%clk 0:00:44]} 1-0


[Site "https://www.chess.com"]